Cogmind - Beta 17 --- EXPLORER MODE // 2026.06.29 @ 19:00:28 Player: Karp Result: Destroyed by D-53 Grenadier with Mini Grenade Launcher Performance ------------- Evolutions (0) 0 Regions Visited (2) 400 Robots Destroyed (1) 5 Value Destroyed (10) 10 Prototype IDs (0) 0 Alien Tech Used (0) 0 Bonus (0) 0 TOTAL SCORE: 415 Bonus ------- None Cogmind --------- Core Integrity 0/250 Matter 300/300 Energy 99/100 System Corruption 0% Temperature Cool (0) Movement Core (50) Location -10/Mines Parts ------- > --- POWER (1) -------- (None) > --- PROPULSION (2) --- (None) > --- UTILITY (3) ------ Targeting Computer Utility Shielding > --- WEAPON (2) ------- (None) > --- INVENTORY (5) ---- (None) Peak State ------------ > --- POWER ------------ Ion Engine > --- PROPULSION ------- (None) > --- UTILITY ---------- Targeting Computer Targeting Computer Utility Shielding > --- WEAPON ----------- Mining Laser > --- INVENTORY -------- Medium Matter Pod [Rating: 5] Favorites ----------- Power Ion Engine Engine Ion Engine Propulsion None Utility Targeting Computer Processor Targeting Computer Protection Utility Shielding Weapon Mining Laser Special Weapon Mining Laser Build | -11 -10 -10 ------- Run | Yrd Mat Min Slots Evolved 1 | . 1 . Power . | . . . Propulsion . | . . . Utility 1 | . 1 . Weapon . | . . . Parts Attached 5 | 2 3 . Power 1 | . 1 . Engine 1 | . 1 . Core . | . . . Reactor . | . . . Propulsion . | . . . Treads . | . . . Leg . | . . . Wheel . | . . . Hover . | . . . Flight . | . . . Utility 3 | 2 1 . Device . | . . . Storage . | . . . Processor 2 | 1 1 . Hackware . | . . . Protection 1 | 1 . . Artifact . | . . . Weapon 1 | . 1 . Energy Gun . | . . . Energy Cannon . | . . . Ballistic Gun . | . . . Ballistic Cannon . | . . . Launcher . | . . . Special Weapon 1 | . 1 . Impact Weapon . | . . . Slashing Weapon . | . . . Piercing Weapon . | . . . Special Melee Weapon . | . . . Unidentified Prototypes . | . . . Parts Lost 1 | . . 1 Power . | . . . Propulsion . | . . . Utility . | . . . Weapon 1 | . . 1 Highest Loss Streak 1 | . . 1 To Critical Strikes . | . . . Average Backups . | . 1 . Power . | . . . Propulsion . | . . . Utility . | . 1 . Weapon . | . . . Tool/Special . | . . . Unused Backups 1 | . . 1 Power . | . . . Propulsion . | . . . Utility 1 | . . 1 Weapon . | . . . Tool/Special . | . . . Average Slot Usage (%) 50 | . 39 55 Engine 10 | . 9 10 Processor 19 | . 14 22 Protection 12 | . 12 12 Special Weapon 6 | . 2 9 Peak Build Rating 5 | 2 5 5 Average Rating 3 | 1 3 4 On Entrance 2 | . 2 5 Avg Prop Armor Cover (%) . | . . . Naked Turns . | . . . Heaviest Build 7 | 1 7 7 Greatest Support 3 | 3 3 3 Greatest Overweight (x) 2 | . 2 2 Average Overweight (x) . | . . 1 Largest Inventory Capacity 5 | 5 5 5 Average Capacity 5 | 5 5 5 Most Carried 3 | 1 3 2 Average Carried . | . 1 . Final Capacity 5 | 5 5 5 Final Carried 1 | 1 1 . Class Distribution -------------------- 100% | Hacker-Mutant Dominant Class ---------------- Hacker-Mutant | -10/Materials Hacker-Mutant | -10/Mines Resources | -11 -10 -10 ----------- Run | Yrd Mat Min Matter Collected 328 | 196 34 98 Remotely . | . . . Salvage Created . | . . . Parts . | . . . Haulers Intercepted . | . . . Recyclers Shooed . | . . . Parts Field Recycled . | . . . Retrieved Matter . | . . . Parts Self-Destructed . | . . . Prevented . | . . . Parts Restored . | . . . Kills | -11 -10 -10 ------- Run | Yrd Mat Min Combat Hostiles Destroyed 1 | . . 1 Cannons 1 | . . 1 Classes Destroyed 1 | . . 1 Swarmer 1 | . . 1 Best Kill Streak 1 | . . 1 Combat Bots Only 1 | . . 1 Max Kills in Single Turn 1 | . . 1 Gunslinging . | . . . Exploded . | . . . Melee . | . . . Uniques/NPCs Destroyed . | . . . Combat | -11 -10 -10 -------- Run | Yrd Mat Min Hostile Shots Fired 49 | . . 49 Missed 7 | . . 7 Hits 42 | . . 42 Projectile 42 | . . 42 AOE 8 | . . 8 Critical Strikes 1 | . . 1 Damage Taken 326 | . . 326 Core 262 | . . 262 Absorbed by Shields . | . . . Ignored by Resistances 223 | . . 223 Core Remaining (%) 100 | 100 . . Volleys Fired 6 | . . 6 Largest 1 | . . 1 Hottest 100 | . . 100 Shots Fired 6 | . . 6 Gun . | . . . Cannon . | . . . Launcher . | . . . Special 6 | . . 6 Kinetic . | . . . Thermal 6 | . . 6 Explosive . | . . . Electromagnetic . | . . . Robot Hit Streak 2 | . . 2 Robot Miss Streak 2 | . . 2 Penetration Max . | . . . Secondary Targets . | . . . Shots Hit Robots 3 | . . 3 Core Hits 1 | . . 1 Critical Kills . | . . . Critical Parts Destroyed . | . . . Critical Strikes . | . . . Melee Attacks . | . . . Impact . | . . . Slashing . | . . . Piercing . | . . . Sneak Attacks . | . . . Combat Hostiles . | . . . Follow-up Attacks . | . . . Damage Inflicted 72 | . . 72 Guns . | . . . Cannons . | . . . Explosions . | . . . Melee . | . . . Ramming . | . . . Kinetic . | . . . Thermal 72 | . . 72 Explosive . | . . . Electromagnetic . | . . . Impact . | . . . Slashing . | . . . Piercing . | . . . Highest Corruption . | . . . Average Corruption . | . . . Corruption Purged . | . . . Corruption Blocked . | . . . Overload Shots . | . . . Overflow Damage 4 | . . 4 Projectiles 4 | . . 4 Explosions . | . . . Melee . | . . . Knockbacks . | . . . Impact . | . . . Kinetic . | . . . Secondary . | . . . Self-Inflicted Damage . | . . . Shots . | . . . Rammed 1 | . . 1 Targets Rammed 1 | . . 1 Kicked . | . . . Crushed . | . . . Highest Temperature 80 | . . 80 Average Temperature 41 | . . 41 Received Heat Transfer . | . . . Siege Activations . | . . . Martial Activations . | . . . Shielding Activations . | . . . Robots Disrupted . | . . . Combat Hostiles . | . . . Robots Corrupted . | . . . Combat Hostiles . | . . . Parts Fried . | . . . Impact Corruptions . | . . . Robots Melted . | . . . Combat Hostiles . | . . . Parts Melted . | . . . Heat Transferred 150 | . . 150 Parts Sabotaged . | . . . Parts Stolen . | . . . Parts Stripped . | . . . Power Chain Reactions . | . . . Alert | -11 -10 -10 ------- Run | Yrd Mat Min Maximum Alert Level . | . . . Low Security (%) 100 | 100 100 100 Level 1 . | . . . Level 2 . | . . . Level 3 . | . . . Level 4 . | . . . Level 5 . | . . . High Security . | . . . Max Security . | . . . Peak Influence 21 | . . 21 Initial . | . . . Average 1 | . . 2 Influence Increases 32 | . . 32 Destroy 0b10 Robot/C 20 | . . 20 Destroy Leader 10 | . . 10 Destroy Structure 2 | . . 2 Influence Decreases 26 | . . 26 Time Decay 16 | . . 16 Lost Part 10 | . . 10 Squads Dispatched . | . . . Investigation . | . . . Extermination . | . . . Reinforcement . | . . . Assault . | . . . Garrison . | . . . Intercept . | . . . Searches Triggered . | . . . Construction Impeded . | . . . Haulers Reinforced . | . . . Active Scanning Responses . | . . . Cargo Convoy Interrupts . | . . . Stealth | -11 -10 -10 --------- Run | Yrd Mat Min Distress Signals . | . . . Communications Jammed . | . . . Distress Signals . | . . . Times Spotted 6 | . 3 3 Peak Tracking Total 3 | . 3 2 Tactical Retreats . | . . . Traps | -11 -10 -10 ------- Run | Yrd Mat Min Traps Triggered . | . . . Indirectly . | . . . Trap Hack Attempts . | . . . Triggered . | . . . Disarmed . | . . . Reprogrammed . | . . . Reused . | . . . Traps Extracted . | . . . Installed . | . . . Triggered . | . . . Machines | -11 -10 -10 ---------- Run | Yrd Mat Min Machines Disabled . | . . . Max in Single Turn . | . . . Machines Repaired . | . . . Machines Dismantled . | . . . Machines Sabotaged . | . . . Overloaded Fab Kills . | . . . Hacking | -11 -10 -10 --------- Run | Yrd Mat Min Machines Accessed . | . . . Terminals . | . . . Fabricators . | . . . Repair Stations . | . . . Recycling Units . | . . . Scanalyzers . | . . . Garrison Access . | . . . Total Hacks . | . . . Successful . | . . . Failed . | . . . Catastrophic . | . . . Database Lockouts . | . . . Manual . | . . . Terminals . | . . . Fabricators . | . . . Repair Stations . | . . . Recycling Units . | . . . Scanalyzers . | . . . Garrison Access . | . . . Terminal Hacks . | . . . Fabricator Hacks . | . . . Repair Station Hacks . | . . . Recycling Unit Hacks . | . . . Scanalyzer . | . . . Garrison Access Hacks . | . . . Unauthorized Hacks . | . . . Terminals . | . . . Fabricators . | . . . Repair Stations . | . . . Recycling Units . | . . . Scanalyzers . | . . . Garrison Access . | . . . Data Cores Recovered . | . . . Used . | . . . Hacking Detections . | . . . Full Trace Events . | . . . Feedback Events . | . . . Feedback Blocked . | . . . Robot Schematics Acquired . | . . . Robots Built . | . . . Authchips . | . . . Time . | . . . Total Robot Build Rating . | . . . Part Schematics Acquired . | . . . Parts Built . | . . . Authchips . | . . . Time . | . . . Total Part Build Rating . | . . . Part Studies Acquired . | . . . Parts Repaired . | . . . Time . | . . . Parts Recycled . | . . . Recycled Matter . | . . . Retrieved Matter . | . . . Retrieved Components . | . . . Parts Scanalyzed . | . . . Part Schematics Acquired . | . . . Parts Damaged . | . . . Bothacking | -11 -10 -10 ------------ Run | Yrd Mat Min Used RIF Installer . | . . . Robots Hacked . | . . . Non-combat . | . . . Combat . | . . . Robot Hacks Applied . | . . . Relay Couplers Released . | . . . Fabnet Peak Effective % . | . . . Robots Rewired . | . . . Allies Hacked . | . . . Hacks Repelled . | . . . Allies | -11 -10 -10 -------- Run | Yrd Mat Min Total Allies . | . . . Largest Group . | . . . Highest-Rated Group . | . . . Highest-Rated Ally . | . . . Total Orders . | . . . Ally Attacks . | . . . Total Damage . | . . . Kills . | . . . Allies Corrupted . | . . . Allies Melted . | . . . Intel | -11 -10 -10 ------- Run | Yrd Mat Min Active Infowar (turns) . | . . . Robot Analysis Total . | . . . Derelict Logs Recovered . | . . . Drone Launches . | . . . Drone Recoveries . | . . . Exploration | -11 -10 -10 ------------- Run | Yrd Mat Min Turns Passed 294 | 21 97 176 Spaces Moved 265 | 34 98 133 Core 265 | 34 98 133 Treads . | . . . Legs . | . . . Wheels . | . . . Hover . | . . . Flight . | . . . Fastest Speed 50 | 50 50 50 Average Speed 96 | 50 94 109 Slowest Speed 150 | 50 150 150 Overloaded Moves . | . . . Propulsion Burnouts . | . . . Robots Hopped . | . . . Potential Cave-ins . | . . . Cave-ins Triggered . | . . . Exploration Rate (%) 20 | 3 24 33 Regions Visited 2 Branch Regions 1 Pre-discovered Areas . | . . . Known Exits Taken 2 | 1 1 . Unknown Exits Taken . | . . . Scrap Searched . | . . . Spaces Dug . | . . . Terrain Destroyed 2 | . . 2 Melee . | . . . Projectile 2 | . . 2 AOE . | . . . Terrain Rammed . | . . . Walls Destroyed . | . . . Machines Disabled . | . . . Actions | -11 -10 -10 --------- Run | Yrd Mat Min Total 285 | 36 102 147 Wait 2 | . . 2 Move 263 | 33 97 133 Hop . | . . . Pick Up 3 | 1 2 . Fast Attach 3 | 2 1 . Attach 3 | . 2 1 Detach 1 | . . 1 Swap . | . . . Drop 3 | . . 3 Fire 6 | . . 6 Melee . | . . . Ram 1 | . . 1 Kick . | . . . Crush . | . . . Escape Stasis . | . . . Rewire . | . . . Trap . | . . . Miscellaneous . | . . . Route ------- -11/Scrapyard -10/Materials -10/Mines History --------- Turn | Location | Event 9 | -11/Scrapyard | Identified exit to Materials 9 | -11/Scrapyard | Discovered exit to Materials (range 14) 22 | -11/Scrapyard | Entered Materials 22 | -10/Materials | Evolved 1 slot: Utility x1 83 | -10/Materials | Identified exit to Mines 83 | -10/Materials | Discovered exit to Mines (range 6) 119 | -10/Materials | Entered Mines 123 | -10/Mines | Assembled infested the area 286 | -10/Mines | Core integrity fell below 50% 292 | -10/Mines | Core integrity fell below 20% 295 | -10/Mines | Destroyed by D-53 Grenadier with Mini Grenade Launcher Last Messages --------------- U-05 Engineer builds a Wall. S-10 Pest destroyed. Mining Laser destroyed. Discarded Broken Targeting Computer. U-05 Engineer lays Concrete. Dropped Med. Matter Pod. Dropped Ion Engine. Extracted 1 matter. U-05 Engineer lays Concrete. U-05 Engineer builds a Wall. The unstable cave ceiling collapses. U-05 Engineer lays Concrete. U-05 Engineer builds a Wall. U-05 Engineer destroyed. U-05 Engineer lays Concrete. The unstable cave ceiling collapses. U-05 Engineer lays Concrete. U-05 Engineer builds a Wall. The unstable cave ceiling collapses. U-05 Engineer lays Concrete. Map ----- +----------------------------------------------------+ | ???????????# #???????????????????????? | | ???????????# #???????????????????????? | | ???????????######## # ###???????????????????????? | | ??????????????????# # #?????????????????????????? | | ??????????????????# # #####?????????????????????? | | ??????????????????# #?????????????????????? | | ??????????????????###### #?????????????????????? | | ???????????????????????# ###########???????????? | | ???????????????????????# #???????????? | | ???????????????????????############ #???????????? | | ??????????????????????????????????# #???????????? | | ??????????????????????????????????# #?????#####?? | | ??????????????????????????????????# ###?## ##? | | ??????????????????????????????????# ### #? | | ??????????????????????????????????## ## #? | | ???????????????????????????????????# ## #?? | | ???????????????????????????????????# ## #??? | | ???????????????????####????????????# ## #????? | | ???????????????????#""#????????????# ## ##????? | | ???????????????????#" #????????????# ## ##????? | | ??????????????????## "#????????????# ## ##???? | | ??????????????????# ###??????????# ## ##??? | | ??????????????????# #??????????# # #??? | | ?????????????????## #????????### """" #?? | | ?????????????????# ##### #?## """" #?? | | ?????????????????# @ ### """" ##?? | | ?????????####????# ####### #??? | | ????????## ####?# #????# ##??? | | ???????## ### #????## # #### ##???? | | ????#### #????### #??#####????? | | ????# #??????# #???????????? | | ????# ##??????# #???????????? | | ????##### d # #???????# #???????????? | | ????????# ######### #???????????? | | ????????## =!= ## = #???????????? | | ?????????### * !##"" #???????????? | | ???????????## !=# # *#?## ######T#????? | | ???????????# % ######?# #? | | ???????????## ## # #??????# #? | | ????????????## # ###??????# """ """ """ #? | | ?????????????###### ## #????????# """ """ ""???? | | ??????????????????#### ???????# """ """ "????? | | ?????????????????????# ??????# ?????? | | ????????????????????? #?????# """ """ ?????? | | ????????????????????? #?????# """ """ ?????? | | ?????????????????????## #????# ?????????????? | | ??????????????????????? #????# ?????????????? | | ??????????????????????? #????##?????????????? | | ??????????????????????? #???????????????????? | | ??????????????????????? #???????????????????? | +----------------------------------------------------+ Best States ------------- Heat Dissipation 25 Energy Generation 10 Energy Capacity 250 Matter Stores 300 Matter Capacity 300 Sight Range 16 Terrain Scan Density 10 Resistance: KI 35 Resistance: TH 35 Resistance: EX 35 Resistance: EM 35 Resistance: I 35 Resistance: S 35 Resistance: P 35 Utility Shielding 33 Evasion (%) 50 Targeting Accuracy 10 Offensive Hacking 20 Item Schematics ----------------- None Robot Schematics ------------------ None Fabricated ------------ Nothing Repaired ---------- Nothing Studied --------- None Alien Tech Used ----------------- None Achievements -------------- None Challenges ------------ None Game ------ Seed TechSupercompositeBlade Manual? 0 Play Time 00:07:22 Cumulative 11.1 hours Start 2026.06.29 @ 18:55:34 End 2026.06.29 @ 19:00:28 Sessions 1 Manual Loads 0 Difficulty Explorer Special Mode None Game No. 21 Rogue 0 Adventurer 2 Explorer 19 Win Type - Total 0 Types 0/0/0/0/0/0/0/0/0/0 Lore% 13 Gallery% 14 Achievement% 11 Wizard Run 0 Options --------- Layout 1 ASCII 0 Keyboard 0 Movement Mouse Keybinds 0 Fullscreen 1 Font 32/SmallcapsGlow Map View 38x17 Zoom Use 48% Tactical HUD 0 Map Filters NONE Filters NONE Steam 1 RUN: dfb7f428-b40f-42c1-8d35-391e6b50137f